[Event "*** Titled Tuesday Blitz"]
[Site "Chess.com"]
[Date "2020.05.05"]
[Round "6"]
[White "TerorPtica"]
[Black "vlad_Sid"]
[Result "0-1"]
[WhiteElo "2790"]
[BlackElo "2627"]
[TimeControl "180+1"]
[EndTime "11:08:54 PDT"]
[Termination "vlad_Sid won on time"]

1. d4 {[%clk 0:03:00.9]} 1... Nf6 {[%clk 0:02:51.8]} 2. c4 {[%clk 0:03:00]} 2...
c5 {[%clk 0:02:51.7]} 3. d5 {[%clk 0:02:59.3]} 3... b5 {[%clk 0:02:51]} 4. cxb5
{[%clk 0:02:59.3]} 4... a6 {[%clk 0:02:50.9]} 5. bxa6 {[%clk 0:02:59.7]} 5... g6
{[%clk 0:02:49.9]} 6. Nc3 {[%clk 0:02:59.6]} 6... Bg7 {[%clk 0:02:50.4]} 7. e4
{[%clk 0:03:00.2]} 7... O-O {[%clk 0:02:50.8]} 8. Nf3 {[%clk 0:03:00.6]} 8... e6
{[%clk 0:02:51.2]} 9. Be2 {[%clk 0:02:54.7]} 9... exd5 {[%clk 0:02:48]} 10. exd5
{[%clk 0:02:52.8]} 10... Bxa6 {[%clk 0:02:47]} 11. Bxa6 {[%clk 0:02:50.7]} 11...
Nxa6 {[%clk 0:02:47.9]} 12. O-O {[%clk 0:02:51.1]} 12... d6 {[%clk 0:02:45.8]}
13. h3 {[%clk 0:02:40.6]} 13... Re8 {[%clk 0:02:43.5]} 14. Bf4 {[%clk 0:02:40]}
14... Rb8 {[%clk 0:02:38.3]} 15. b3 {[%clk 0:02:17.2]} 15... Ne4 {[%clk
0:02:35.7]} 16. Nxe4 {[%clk 0:02:14.8]} 16... Rxe4 {[%clk 0:02:36.6]} 17. Bg5
{[%clk 0:02:14.3]} 17... Qa5 {[%clk 0:02:34.5]} 18. Bd2 {[%clk 0:02:00.5]} 18...
Qa3 {[%clk 0:02:31.3]} 19. Bc1 {[%clk 0:01:50.1]} 19... Qa5 {[%clk 0:02:21.4]}
20. Bd2 {[%clk 0:01:50]} 20... Qa3 {[%clk 0:02:10.8]} 21. Bc1 {[%clk 0:01:34.9]}
21... Qb4 {[%clk 0:02:01.7]} 22. Rb1 {[%clk 0:01:32.2]} 22... Qb7 {[%clk
0:02:01.3]} 23. Qd3 {[%clk 0:01:15.3]} 23... f5 {[%clk 0:01:58.2]} 24. a3 {[%clk
0:01:13.4]} 24... c4 {[%clk 0:01:55.9]} 25. Qd1 {[%clk 0:01:03]} 25... cxb3
{[%clk 0:01:54.7]} 26. Nd2 {[%clk 0:01:03.3]} 26... Rd4 {[%clk 0:01:49.4]} 27.
Rxb3 {[%clk 0:01:00.2]} 27... Qxb3 {[%clk 0:01:48.9]} 28. Qxb3 {[%clk
0:00:58.8]} 28... Rxb3 {[%clk 0:01:48.6]} 29. Nxb3 {[%clk 0:00:59.3]} 29... Rxd5
{[%clk 0:01:49.1]} 30. Be3 {[%clk 0:00:55.8]} 30... Rd3 {[%clk 0:01:48.2]} 31.
Rb1 {[%clk 0:00:55.9]} 31... Nc7 {[%clk 0:01:29.8]} 32. a4 {[%clk 0:00:54.3]}
32... Nd5 {[%clk 0:01:29]} 33. Bd2 {[%clk 0:00:51.8]} 33... Bc3 {[%clk
0:01:24.2]} 34. Bh6 {[%clk 0:00:33.6]} 34... Bf6 {[%clk 0:01:07.1]} 35. a5
{[%clk 0:00:30.7]} 35... Bd8 {[%clk 0:00:44.5]} 36. Nd2 {[%clk 0:00:22.7]} 36...
Bxa5 {[%clk 0:00:42.1]} 37. Rb8+ {[%clk 0:00:20.2]} 37... Kf7 {[%clk 0:00:41.6]}
38. Nc4 {[%clk 0:00:20.8]} 38... Bc7 {[%clk 0:00:31.9]} 39. Rf8+ {[%clk
0:00:16.7]} 39... Ke6 {[%clk 0:00:30.3]} 40. Re8+ {[%clk 0:00:15.1]} 40... Kd7
{[%clk 0:00:29.1]} 41. Rh8 {[%clk 0:00:14.9]} 41... Nf6 {[%clk 0:00:27.8]} 42.
Bg7 {[%clk 0:00:08.7]} 42... Rd1+ {[%clk 0:00:26.1]} 43. Kh2 {[%clk 0:00:08.1]}
43... d5+ {[%clk 0:00:26.9]} 44. g3 {[%clk 0:00:08.3]} 44... dxc4 {[%clk
0:00:17.2]} 45. Bxf6 {[%clk 0:00:08.2]} 45... Bb6 {[%clk 0:00:17.2]} 46. Rxh7+
{[%clk 0:00:08.3]} 46... Kc6 {[%clk 0:00:17.6]} 47. Rg7 {[%clk 0:00:04.5]} 47...
Bxf2 {[%clk 0:00:15.4]} 48. Rxg6 {[%clk 0:00:04.1]} 48... Rd6 {[%clk 0:00:16]}
49. Rh6 {[%clk 0:00:03.3]} 49... Bd4 {[%clk 0:00:14.7]} 50. Bg5 {[%clk
0:00:02.8]} 50... Rxh6 {[%clk 0:00:13.7]} 51. Bxh6 {[%clk 0:00:03.7]} 51... Kd5
{[%clk 0:00:14.6]} 52. h4 {[%clk 0:00:03.5]} 52... c3 {[%clk 0:00:10.8]} 53. Kh3
{[%clk 0:00:03]} 53... Ke4 {[%clk 0:00:09.8]} 54. g4 {[%clk 0:00:02.8]} 54... f4
{[%clk 0:00:08]} 55. g5 {[%clk 0:00:02.8]} 55... c2 {[%clk 0:00:07.7]} 56. g6
{[%clk 0:00:02.9]} 56... c1=Q {[%clk 0:00:08.1]} 0-1

[Event "*** Titled Tuesday Blitz"]
[Site "Chess.com"]
[Date "2020.05.05"]
[Round "6"]
[White "Zhani-Z"]
[Black "PotapovaM"]
[Result "0-1"]
[WhiteElo "2506"]
[BlackElo "2392"]
[TimeControl "180+1"]
[EndTime "11:08:55 PDT"]
[Termination "PotapovaM won by resignation"]

1. e4 {[%clk 0:03:00.9]} 1... c5 {[%clk 0:02:59.9]} 2. Nf3 {[%clk 0:02:49.2]}
2... d6 {[%clk 0:03:00.4]} 3. Nc3 {[%clk 0:02:42.9]} 3... Nf6 {[%clk 0:03:00.5]}
4. e5 {[%clk 0:02:41.8]} 4... dxe5 {[%clk 0:03:01.4]} 5. Nxe5 {[%clk 0:02:41.7]}
5... a6 {[%clk 0:03:02.1]} 6. g3 {[%clk 0:02:38.6]} 6... Nbd7 {[%clk 0:03:00.1]}
7. d4 {[%clk 0:02:16.7]} 7... Nxe5 {[%clk 0:02:54.7]} 8. dxe5 {[%clk 0:02:16.4]}
8... Qxd1+ {[%clk 0:02:54]} 9. Nxd1 {[%clk 0:02:17.3]} 9... Nd5 {[%clk
0:02:47.4]} 10. Bg2 {[%clk 0:02:13.4]} 10... Nb4 {[%clk 0:02:46.7]} 11. Ne3
{[%clk 0:02:13.8]} 11... e6 {[%clk 0:02:26.5]} 12. O-O {[%clk 0:02:02]} 12...
Be7 {[%clk 0:02:26]} 13. Rd1 {[%clk 0:01:58.4]} 13... O-O {[%clk 0:02:26]} 14.
c3 {[%clk 0:01:58]} 14... Nc6 {[%clk 0:02:25.5]} 15. Nc4 {[%clk 0:01:51.7]}
15... Rb8 {[%clk 0:02:21.7]} 16. Nb6 {[%clk 0:01:39.8]} 16... Nxe5 {[%clk
0:02:15.4]} 17. Bf4 {[%clk 0:01:39.4]} 17... f6 {[%clk 0:01:57.3]} 18. a4 {[%clk
0:01:34.8]} 18... Kf7 {[%clk 0:01:42.2]} 19. a5 {[%clk 0:01:31.3]} 19... g5
{[%clk 0:01:31.9]} 20. Bxe5 {[%clk 0:01:29.6]} 20... fxe5 {[%clk 0:01:32.8]} 21.
Re1 {[%clk 0:01:25.5]} 21... Bf6 {[%clk 0:01:27.3]} 22. Rad1 {[%clk 0:01:25.1]}
22... Ke7 {[%clk 0:01:26.3]} 23. Nc4 {[%clk 0:01:22.4]} 23... h6 {[%clk
0:01:21.6]} 24. Nxe5 {[%clk 0:01:21.4]} 24... Bxe5 {[%clk 0:01:19.2]} 25. Rxe5
{[%clk 0:01:22.3]} 25... b6 {[%clk 0:01:19.3]} 26. axb6 {[%clk 0:01:06.7]} 26...
Rxb6 {[%clk 0:01:20.2]} 27. Rd2 {[%clk 0:01:02.5]} 27... Rf5 {[%clk 0:01:13.1]}
28. Re1 {[%clk 0:00:45.9]} 28... Bb7 {[%clk 0:01:12.7]} 29. Bxb7 {[%clk
0:00:34.9]} 29... Rxb7 {[%clk 0:01:13.6]} 30. Re4 {[%clk 0:00:29.3]} 30... Rb6
{[%clk 0:00:47.4]} 31. Kf1 {[%clk 0:00:27.3]} 31... Kf6 {[%clk 0:00:43.2]} 32.
h4 {[%clk 0:00:23]} 32... Rd5 {[%clk 0:00:43]} 33. hxg5+ {[%clk 0:00:21.8]}
33... hxg5 {[%clk 0:00:43.9]} 34. Rde2 {[%clk 0:00:20.6]} 34... Rd1+ {[%clk
0:00:41.2]} 35. Kg2 {[%clk 0:00:20.9]} 35... Rb1 {[%clk 0:00:38.5]} 36. Rc4
{[%clk 0:00:19.9]} 36... Rb5 {[%clk 0:00:34.8]} 37. Ra4 {[%clk 0:00:17.1]} 37...
a5 {[%clk 0:00:32.4]} 38. Ra2 {[%clk 0:00:17.7]} 38... e5 {[%clk 0:00:25]} 39.
Kf3 {[%clk 0:00:16.8]} 39... Kf5 {[%clk 0:00:24.5]} 40. Ke3 {[%clk 0:00:15.6]}
40... Rd1 {[%clk 0:00:21.1]} 41. Rd2 {[%clk 0:00:14.4]} 41... Re1+ {[%clk
0:00:21.4]} 42. Kd3 {[%clk 0:00:14]} 42... Re4 {[%clk 0:00:18.2]} 43. f3 {[%clk
0:00:12.7]} 43... c4+ {[%clk 0:00:18.3]} 44. Kc2 {[%clk 0:00:12.6]} 44... Re1
{[%clk 0:00:18.8]} 45. Ra4 {[%clk 0:00:08.9]} 45... Rc5 {[%clk 0:00:19]} 46. Rf2
{[%clk 0:00:05.5]} 46... Re3 {[%clk 0:00:18]} 47. Ra2 {[%clk 0:00:04.8]} 47...
g4 {[%clk 0:00:15.9]} 48. f4 {[%clk 0:00:04]} 48... Rxg3 {[%clk 0:00:15.1]} 49.
fxe5+ {[%clk 0:00:03.7]} 49... Kxe5 {[%clk 0:00:16]} 50. Ra1 {[%clk 0:00:04.2]}
50... Rf3 {[%clk 0:00:15.8]} 51. Rg2 {[%clk 0:00:03.5]} 51... Kf4 {[%clk
0:00:15.6]} 52. Re1 {[%clk 0:00:04.4]} 52... g3 {[%clk 0:00:15.8]} 53. Re8
{[%clk 0:00:03.9]} 53... Rf2+ {[%clk 0:00:15.1]} 54. Rxf2+ {[%clk 0:00:03.9]}
54... gxf2 {[%clk 0:00:16]} 55. Rf8+ {[%clk 0:00:04.6]} 55... Rf5 {[%clk
0:00:16.3]} 0-1

[Event "*** Titled Tuesday Blitz"]
[Site "Chess.com"]
[Date "2020.05.05"]
[Round "6"]
[White "pouya21"]
[Black "mikolka1985"]
[Result "0-1"]
[WhiteElo "2773"]
[BlackElo "2604"]
[TimeControl "180+1"]
[EndTime "11:08:56 PDT"]
[Termination "mikolka1985 won by resignation"]

1. d4 {[%clk 0:03:00.9]} 1... Nf6 {[%clk 0:02:57.8]} 2. c4 {[%clk 0:03:00.7]}
2... e6 {[%clk 0:02:57.1]} 3. Nc3 {[%clk 0:03:00.9]} 3... Bb4 {[%clk 0:02:55.9]}
4. f3 {[%clk 0:03:01.1]} 4... c5 {[%clk 0:02:52.5]} 5. d5 {[%clk 0:03:00.1]}
5... O-O {[%clk 0:02:51.4]} 6. e4 {[%clk 0:02:57.7]} 6... b5 {[%clk 0:02:50.9]}
7. Nh3 {[%clk 0:02:57.4]} 7... d6 {[%clk 0:02:47.2]} 8. Nf4 {[%clk 0:02:53.4]}
8... e5 {[%clk 0:02:46.3]} 9. Ne2 {[%clk 0:02:52]} 9... bxc4 {[%clk 0:02:46.7]}
10. Bd2 {[%clk 0:02:52.2]} 10... Nbd7 {[%clk 0:02:46.1]} 11. g4 {[%clk 0:02:52]}
11... Nb6 {[%clk 0:02:44.7]} 12. Ng3 {[%clk 0:02:51.3]} 12... Ne8 {[%clk
0:02:43.8]} 13. h4 {[%clk 0:02:49.7]} 13... Nc7 {[%clk 0:02:42.9]} 14. Be2
{[%clk 0:02:42.3]} 14... a6 {[%clk 0:02:42.4]} 15. a4 {[%clk 0:02:30]} 15... Ba5
{[%clk 0:02:37.9]} 16. g5 {[%clk 0:02:15.9]} 16... f5 {[%clk 0:02:32.3]} 17.
exf5 {[%clk 0:02:08.5]} 17... Bxf5 {[%clk 0:02:28.8]} 18. Nxf5 {[%clk
0:02:08.9]} 18... Rxf5 {[%clk 0:02:27.8]} 19. Ne4 {[%clk 0:02:09.4]} 19... Bxd2+
{[%clk 0:02:25.1]} 20. Qxd2 {[%clk 0:02:09.3]} 20... a5 {[%clk 0:02:24.3]} 21.
h5 {[%clk 0:02:02.8]} 21... Rf4 {[%clk 0:02:22.1]} 22. h6 {[%clk 0:02:00.3]}
22... g6 {[%clk 0:02:21.1]} 23. Rc1 {[%clk 0:01:46.3]} 23... Kh8 {[%clk
0:02:18.7]} 24. Bxc4 {[%clk 0:01:33.4]} 24... Rxf3 {[%clk 0:02:17.6]} 25. b3
{[%clk 0:01:24.5]} 25... Rf4 {[%clk 0:02:13]} 26. Nf6 {[%clk 0:01:24.1]} 26...
Ne8 {[%clk 0:02:07]} 27. Rf1 {[%clk 0:00:52.3]} 27... Nxf6 {[%clk 0:01:51.2]}
28. Rxf4 {[%clk 0:00:51]} 28... exf4 {[%clk 0:01:50.7]} 29. Qc3 {[%clk 0:00:44]}
29... Nd7 {[%clk 0:01:46.1]} 30. gxf6 {[%clk 0:00:40.1]} 30... Ne5 {[%clk
0:01:42.3]} 31. f7 {[%clk 0:00:37.4]} 31... Qf6 {[%clk 0:01:39.8]} 32. Kf1
{[%clk 0:00:34]} 32... Qxf7 {[%clk 0:01:39.1]} 33. Re1 {[%clk 0:00:34.3]} 33...
Qf6 {[%clk 0:01:37.1]} 34. Re4 {[%clk 0:00:34.2]} 34... Rf8 {[%clk 0:01:35.9]}
35. Qxa5 {[%clk 0:00:31.9]} 35... f3 {[%clk 0:01:32.7]} 36. Qc3 {[%clk
0:00:22.8]} 36... Qf5 {[%clk 0:01:28.2]} 37. Rh4 {[%clk 0:00:19.8]} 37... f2
{[%clk 0:01:25.2]} 38. Rh1 {[%clk 0:00:17.3]} 38... g5 {[%clk 0:01:18.1]} 39.
Be2 {[%clk 0:00:17]} 39... g4 {[%clk 0:01:16.9]} 40. Qe3 {[%clk 0:00:16.7]}
40... g3 {[%clk 0:00:58.3]} 41. Kg2 {[%clk 0:00:15.8]} 41... Rg8 {[%clk
0:00:54.4]} 42. a5 {[%clk 0:00:15.2]} 42... Qf7 {[%clk 0:00:46.8]} 43. a6 {[%clk
0:00:14.9]} 43... Qxd5+ {[%clk 0:00:45.6]} 44. Bf3 {[%clk 0:00:12.4]} 44... Qf7
{[%clk 0:00:42.5]} 45. Be4 {[%clk 0:00:11.8]} 45... d5 {[%clk 0:00:34.4]} 46.
Bxh7 {[%clk 0:00:11.5]} 46... Kxh7 {[%clk 0:00:27.5]} 47. Qxe5 {[%clk
0:00:11.7]} 47... d4 {[%clk 0:00:23]} 48. Qe4+ {[%clk 0:00:11.3]} 48... Rg6
{[%clk 0:00:22.5]} 49. Qb7 {[%clk 0:00:10]} 49... Qxb7+ {[%clk 0:00:20.7]} 50.
axb7 {[%clk 0:00:10.9]} 50... Rb6 {[%clk 0:00:20.8]} 51. Kxg3 {[%clk 0:00:11.8]}
51... Rxb7 {[%clk 0:00:20.8]} 52. Kxf2 {[%clk 0:00:12.7]} 52... Rxb3 {[%clk
0:00:21.2]} 53. Rh5 {[%clk 0:00:12.9]} 53... Rc3 {[%clk 0:00:20.9]} 54. Ke2
{[%clk 0:00:11.6]} 54... c4 {[%clk 0:00:20.7]} 55. Rd5 {[%clk 0:00:09.7]} 55...
Rc2+ {[%clk 0:00:20]} 56. Kd1 {[%clk 0:00:09.7]} 56... d3 {[%clk 0:00:19.9]} 57.
Rd6 {[%clk 0:00:10.3]} 57... Rg2 {[%clk 0:00:18.3]} 58. Kc1 {[%clk 0:00:09.9]}
58... Rh2 {[%clk 0:00:16.7]} 59. Kd1 {[%clk 0:00:09.8]} 59... Rxh6 {[%clk
0:00:16.3]} 60. Rd4 {[%clk 0:00:09.7]} 60... Rh1+ {[%clk 0:00:14.9]} 61. Kd2
{[%clk 0:00:10.3]} 61... Rh2+ {[%clk 0:00:15.8]} 62. Kd1 {[%clk 0:00:09.7]}
62... Rc2 {[%clk 0:00:16.2]} 0-1

[Event "*** Titled Tuesday Blitz"]
[Site "Chess.com"]
[Date "2020.05.05"]
[Round "6"]
[White "pichonazo"]
[Black "Man-Chuk"]
[Result "0-1"]
[WhiteElo "2512"]
[BlackElo "2743"]
[TimeControl "180+1"]
[EndTime "11:08:57 PDT"]
[Termination "Man-Chuk won by resignation"]

1. e4 {[%clk 0:03:00.9]} 1... g6 {[%clk 0:02:58.1]} 2. d4 {[%clk 0:03:00.5]}
2... Bg7 {[%clk 0:02:57.5]} 3. Nc3 {[%clk 0:03:00.4]} 3... d6 {[%clk 0:02:58]}
4. Nf3 {[%clk 0:02:59.9]} 4... a6 {[%clk 0:02:58.2]} 5. a4 {[%clk 0:02:59]} 5...
c6 {[%clk 0:02:54.9]} 6. Be2 {[%clk 0:02:56.9]} 6... Nf6 {[%clk 0:02:53.9]} 7.
O-O {[%clk 0:02:55.8]} 7... O-O {[%clk 0:02:54.1]} 8. e5 {[%clk 0:02:52.4]} 8...
Nd5 {[%clk 0:02:52.5]} 9. Nxd5 {[%clk 0:02:50.9]} 9... cxd5 {[%clk 0:02:53.4]}
10. Bf4 {[%clk 0:02:50.8]} 10... dxe5 {[%clk 0:02:51.3]} 11. Nxe5 {[%clk
0:02:49.6]} 11... f6 {[%clk 0:02:41.2]} 12. Nf3 {[%clk 0:02:45.4]} 12... Nc6
{[%clk 0:02:41.7]} 13. c4 {[%clk 0:02:42.7]} 13... Be6 {[%clk 0:02:39.7]} 14.
cxd5 {[%clk 0:02:24.9]} 14... Bxd5 {[%clk 0:02:39.1]} 15. Rc1 {[%clk 0:02:23.4]}
15... e6 {[%clk 0:02:28.7]} 16. Bc4 {[%clk 0:02:22.5]} 16... Qd7 {[%clk
0:02:15.4]} 17. Re1 {[%clk 0:02:18]} 17... Rfe8 {[%clk 0:02:09.3]} 18. Bxd5
{[%clk 0:02:17.4]} 18... exd5 {[%clk 0:02:06.5]} 19. Qb3 {[%clk 0:02:11.7]}
19... g5 {[%clk 0:02:02]} 20. Be3 {[%clk 0:01:59.1]} 20... Bf8 {[%clk
0:01:57.2]} 21. h3 {[%clk 0:01:54.1]} 21... Kg7 {[%clk 0:01:32.1]} 22. Qd3
{[%clk 0:01:51.2]} 22... Bd6 {[%clk 0:01:24]} 23. b3 {[%clk 0:01:47.5]} 23...
Re7 {[%clk 0:01:20]} 24. Bd2 {[%clk 0:01:45.9]} 24... Rae8 {[%clk 0:01:18.1]}
25. Rxe7+ {[%clk 0:01:45.6]} 25... Rxe7 {[%clk 0:01:16.2]} 26. Re1 {[%clk
0:01:46.1]} 26... Rxe1+ {[%clk 0:01:15.4]} 27. Nxe1 {[%clk 0:01:43]} 27... Qe6
{[%clk 0:01:09.8]} 28. Nc2 {[%clk 0:01:41.1]} 28... Qe4 {[%clk 0:01:08.1]} 29.
Qxe4 {[%clk 0:01:34.2]} 29... dxe4 {[%clk 0:01:09]} 30. d5 {[%clk 0:01:28.3]}
30... Ne7 {[%clk 0:01:06.8]} 31. Ne3 {[%clk 0:01:27.8]} 31... Bc5 {[%clk
0:01:06.6]} 32. d6 {[%clk 0:01:17.1]} 32... Bxd6 {[%clk 0:01:06]} 33. Bc3 {[%clk
0:01:17.6]} 33... Kf7 {[%clk 0:01:00.9]} 34. g4 {[%clk 0:01:16.7]} 34... Ke6
{[%clk 0:00:57.4]} 35. Kf1 {[%clk 0:01:16.3]} 35... Be5 {[%clk 0:00:57.2]} 36.
Bb4 {[%clk 0:01:14.1]} 36... Nd5 {[%clk 0:00:42.9]} 37. Nxd5 {[%clk 0:01:13.7]}
37... Kxd5 {[%clk 0:00:43.8]} 38. Ke2 {[%clk 0:01:13.7]} 38... Bd4 {[%clk
0:00:43.2]} 39. Be7 {[%clk 0:01:09.1]} 39... Ke6 {[%clk 0:00:42.8]} 40. Bd8
{[%clk 0:01:08.4]} 40... h6 {[%clk 0:00:41.8]} 41. f3 {[%clk 0:01:07.9]} 41...
f5 {[%clk 0:00:40.7]} 42. fxe4 {[%clk 0:01:03.3]} 42... fxe4 {[%clk 0:00:39.4]}
43. Bc7 {[%clk 0:01:02]} 43... Kf7 {[%clk 0:00:37]} 44. Bd6 {[%clk 0:01:01.4]}
44... Kg6 {[%clk 0:00:36.1]} 45. Bb4 {[%clk 0:01:01]} 45... h5 {[%clk 0:00:36]}
46. Bd6 {[%clk 0:01:00.2]} 46... hxg4 {[%clk 0:00:34.9]} 47. hxg4 {[%clk
0:00:59.1]} 47... Kf6 {[%clk 0:00:35.8]} 48. Bc7 {[%clk 0:00:57.6]} 48... Ke6
{[%clk 0:00:29.6]} 49. Bd8 {[%clk 0:00:54.1]} 49... Bf6 {[%clk 0:00:29.5]} 50.
Bb6 {[%clk 0:00:53.2]} 50... Be5 {[%clk 0:00:28.5]} 51. Be3 {[%clk 0:00:46.3]}
51... Bf4 {[%clk 0:00:28]} 52. Bd4 {[%clk 0:00:46]} 52... Kd5 {[%clk 0:00:27.8]}
53. Bc3 {[%clk 0:00:46]} 53... b5 {[%clk 0:00:21.1]} 54. axb5 {[%clk 0:00:44.9]}
54... axb5 {[%clk 0:00:22]} 55. Bb2 {[%clk 0:00:44.7]} 55... Kd6 {[%clk
0:00:21]} 56. Bc3 {[%clk 0:00:44]} 56... Kc5 {[%clk 0:00:21.3]} 57. Kf2 {[%clk
0:00:41.2]} 57... e3+ {[%clk 0:00:17.7]} 58. Ke2 {[%clk 0:00:41.2]} 58... Kd5
{[%clk 0:00:17.6]} 59. Kd3 {[%clk 0:00:40.3]} 59... Be5 {[%clk 0:00:15.2]} 60.
Bb4 {[%clk 0:00:35.7]} 60... e2 {[%clk 0:00:06.4]} 61. Kxe2 {[%clk 0:00:35.1]}
61... Ke4 {[%clk 0:00:06.6]} 62. Be7 {[%clk 0:00:32.9]} 62... Kf4 {[%clk
0:00:05.7]} 63. Kd3 {[%clk 0:00:28.8]} 63... Kxg4 {[%clk 0:00:06]} 64. Ke4
{[%clk 0:00:29.1]} 64... Bc3 {[%clk 0:00:06.5]} 65. Kd5 {[%clk 0:00:28.8]} 65...
Kf4 {[%clk 0:00:05.1]} 66. Kc5 {[%clk 0:00:27]} 66... b4 {[%clk 0:00:05.1]} 67.
Bd6+ {[%clk 0:00:27]} 67... Kf3 {[%clk 0:00:05.1]} 0-1

[Event "*** Titled Tuesday Blitz"]
[Site "Chess.com"]
[Date "2020.05.05"]
[Round "6"]
[White "Oglob71"]
[Black "Thjop"]
[Result "0-1"]
[WhiteElo "2474"]
[BlackElo "2661"]
[TimeControl "180+1"]
[EndTime "11:08:57 PDT"]
[Termination "Thjop won by checkmate"]

1. d4 {[%clk 0:02:59.1]} 1... Nf6 {[%clk 0:02:59.2]} 2. Nf3 {[%clk 0:02:59.5]}
2... g6 {[%clk 0:02:59]} 3. c4 {[%clk 0:03:00]} 3... Bg7 {[%clk 0:02:59.4]} 4.
Nc3 {[%clk 0:03:00.7]} 4... O-O {[%clk 0:02:59.7]} 5. Bg5 {[%clk 0:03:01.3]}
5... d6 {[%clk 0:03:00]} 6. e3 {[%clk 0:03:01.7]} 6... h6 {[%clk 0:02:55.9]} 7.
Bh4 {[%clk 0:03:00.2]} 7... g5 {[%clk 0:02:54.2]} 8. Bg3 {[%clk 0:03:00.2]} 8...
e6 {[%clk 0:02:47.5]} 9. Bd3 {[%clk 0:02:59.4]} 9... Nh5 {[%clk 0:02:46.1]} 10.
Nd2 {[%clk 0:02:55.4]} 10... Nxg3 {[%clk 0:02:44.9]} 11. hxg3 {[%clk 0:02:55.9]}
11... f5 {[%clk 0:02:35]} 12. Qe2 {[%clk 0:02:54.7]} 12... c5 {[%clk 0:02:33.6]}
13. Nb3 {[%clk 0:02:52.5]} 13... Qe7 {[%clk 0:02:23.2]} 14. O-O-O {[%clk
0:02:51.4]} 14... Nc6 {[%clk 0:02:22.4]} 15. Bb1 {[%clk 0:02:48.4]} 15... a6
{[%clk 0:02:13.8]} 16. g4 {[%clk 0:02:43.6]} 16... f4 {[%clk 0:02:04]} 17. Ne4
{[%clk 0:02:42.1]} 17... cxd4 {[%clk 0:01:55.4]} 18. exd4 {[%clk 0:02:37.9]}
18... Bd7 {[%clk 0:00:58.3]} 19. Rhe1 {[%clk 0:02:36.7]} 19... Rac8 {[%clk
0:00:57.2]} 20. Bd3 {[%clk 0:02:25.2]} 20... a5 {[%clk 0:00:54.5]} 21. Kb1
{[%clk 0:02:25.6]} 21... a4 {[%clk 0:00:54.6]} 22. d5 {[%clk 0:02:20]} 22...
axb3 {[%clk 0:00:52.1]} 23. dxc6 {[%clk 0:02:19.9]} 23... bxa2+ {[%clk
0:00:52.7]} 24. Ka1 {[%clk 0:02:19.1]} 24... bxc6 {[%clk 0:00:52.5]} 25. Bc2
{[%clk 0:02:17.8]} 25... d5 {[%clk 0:00:50.4]} 26. Nc3 {[%clk 0:02:11.2]} 26...
Qf6 {[%clk 0:00:44.8]} 27. Qd3 {[%clk 0:02:10.7]} 27... Rfe8 {[%clk 0:00:43.4]}
28. c5 {[%clk 0:01:45]} 28... Rb8 {[%clk 0:00:39.5]} 29. Re2 {[%clk 0:01:41.9]}
29... Rb4 {[%clk 0:00:36.5]} 30. Kxa2 {[%clk 0:01:14.8]} 30... Ra8+ {[%clk
0:00:33.1]} 31. Ba4 {[%clk 0:01:12.8]} 31... Qxc3 {[%clk 0:00:20.8]} 32. Qxc3
{[%clk 0:01:11.4]} 32... Bxc3 {[%clk 0:00:20.2]} 33. b3 {[%clk 0:01:03]} 33...
Bf6 {[%clk 0:00:17.7]} 34. Ka3 {[%clk 0:01:02.5]} 34... Rab8 {[%clk 0:00:17]}
35. Rde1 {[%clk 0:01:01.9]} 35... Kf7 {[%clk 0:00:16.9]} 36. f3 {[%clk
0:00:56.9]} 36... e5 {[%clk 0:00:17]} 37. Rd1 {[%clk 0:00:52.3]} 37... Rd4
{[%clk 0:00:17.1]} 38. Rxd4 {[%clk 0:00:49.2]} 38... exd4 {[%clk 0:00:18]} 39.
b4 {[%clk 0:00:49.5]} 39... d3 {[%clk 0:00:17.4]} 40. Rd2 {[%clk 0:00:49.1]}
40... Bc3 {[%clk 0:00:17.4]} 41. Rxd3 {[%clk 0:00:48.3]} 41... Bxb4+ {[%clk
0:00:17.7]} 42. Ka2 {[%clk 0:00:49.2]} 42... Bxc5 {[%clk 0:00:18.5]} 43. Rc3
{[%clk 0:00:48.5]} 43... Be3 {[%clk 0:00:18.1]} 44. Bxc6 {[%clk 0:00:47.3]}
44... Bxc6 {[%clk 0:00:19]} 45. Rxc6 {[%clk 0:00:47.1]} 45... Rb6 {[%clk
0:00:19.6]} 46. Rc8 {[%clk 0:00:46.9]} 46... Ke6 {[%clk 0:00:19.5]} 47. Re8+
{[%clk 0:00:44.8]} 47... Kd6 {[%clk 0:00:19.7]} 48. Rc8 {[%clk 0:00:44.1]} 48...
Ke5 {[%clk 0:00:19.5]} 49. Ka3 {[%clk 0:00:40.4]} 49... Kd4 {[%clk 0:00:19.7]}
50. Ka4 {[%clk 0:00:36.3]} 50... Kd3 {[%clk 0:00:19.8]} 51. Rd8 {[%clk
0:00:34.8]} 51... d4 {[%clk 0:00:18.4]} 52. Ka5 {[%clk 0:00:35.4]} 52... Rb2
{[%clk 0:00:18.8]} 53. Rd6 {[%clk 0:00:35.7]} 53... Rxg2 {[%clk 0:00:19.1]} 54.
Rxh6 {[%clk 0:00:35.8]} 54... Ke2 {[%clk 0:00:19.6]} 55. Kb4 {[%clk 0:00:35]}
55... Kxf3 {[%clk 0:00:20.5]} 56. Kc4 {[%clk 0:00:34.1]} 56... Rxg4 {[%clk
0:00:21.4]} 57. Kd3 {[%clk 0:00:33.3]} 57... Rg2 {[%clk 0:00:22.3]} 58. Rh3+
{[%clk 0:00:33.3]} 58... Kf2 {[%clk 0:00:22.4]} 59. Rh1 {[%clk 0:00:31.2]} 59...
g4 {[%clk 0:00:23.3]} 60. Ke4 {[%clk 0:00:28.5]} 60... f3 {[%clk 0:00:24.2]} 61.
Ra1 {[%clk 0:00:26.9]} 61... Rg1 {[%clk 0:00:25.1]} 62. Ra2+ {[%clk 0:00:17.8]}
62... Kg3 {[%clk 0:00:24.9]} 63. Kf5 {[%clk 0:00:16.9]} 63... f2 {[%clk
0:00:24.7]} 64. Ra3 {[%clk 0:00:13.6]} 64... f1=Q+ {[%clk 0:00:23.8]} 65. Kg6
{[%clk 0:00:14]} 65... Qf4 {[%clk 0:00:22.7]} 66. Ra6 {[%clk 0:00:13.2]} 66...
Rh1 {[%clk 0:00:20.5]} 67. Rf6 {[%clk 0:00:11.3]} 67... Rh6+ {[%clk 0:00:19.7]}
68. Kg7 {[%clk 0:00:11.5]} 68... Qxf6+ {[%clk 0:00:20.6]} 69. Kg8 {[%clk
0:00:12]} 69... Rh8# {[%clk 0:00:21.5]} 0-1